Cogmind - Beta 13 @@@ ROGUE MODE // 2024.04.11 @ 10:08:05 Player: m1m1c Result: Destroyed by L-31 Rogue with Katana Performance ------------- Evolutions (1) 500 Regions Visited (3) 600 Robots Destroyed (36) 180 Value Destroyed (848) 848 Prototype IDs (2) 40 Alien Tech Used (0) 0 Bonus (582) 582 TOTAL SCORE: 2750 Bonus ------- High Alert Combat Kills 51 Follower Combat Kills 552 Friendly Fire -21 Cogmind --------- Core Integrity 0/400 Matter 270/300 Energy 99/100 System Corruption 0% Temperature Cool (0) Movement Walking (120) Location -9/Storage Parts ------- > --- POWER (1) -------- (None) > --- PROPULSION (3) --- Carbon-fiber Leg Carbon-fiber Leg > --- UTILITY (3) ------ Small Storage Unit Weight Redist. System > --- WEAPON (2) ------- Improved Assault Rifle Improved Grenade Launcher > --- INVENTORY (8) ---- Compact Wheel High-capacity Matter Pod (200) Core Shielding Utility Shielding Utility Shielding Improved Grenade Launcher Improved Datajack Peak State ------------ > --- POWER ------------ Improved Ion Engine > --- PROPULSION ------- Carbon-fiber Leg Carbon-fiber Leg Carbon-fiber Leg > --- UTILITY ---------- Small Storage Unit Weight Redist. System Sensor Array > --- WEAPON ----------- Shotgun Improved Grenade Launcher > --- INVENTORY -------- Carbon-fiber Leg Compact Wheel Tractor Beam Improved Grenade Launcher Improved Grenade Launcher Improved Datajack [Rating: 21] Favorites ----------- Power Ion Engine Engine Ion Engine Power Core Light Nuclear Core Propulsion Carbon-fiber Leg Leg Carbon-fiber Leg Wheel Compact Wheel Utility Small Storage Unit Device Weight Redist. System Storage Small Storage Unit Weapon Improved Grenade Launcher Energy Gun Small Laser Ballistic Gun Shotgun Launcher Improved Grenade Launcher Build | -11 -10 -9 -9 ------- Run | Yrd Mat Mat Sto Slots Evolved 2 | . . 2 . Power . | . . . . Propulsion 1 | . . 1 . Utility 1 | . . 1 . Weapon . | . . . . Parts Attached 31 | 8 4 10 9 Power 7 | 1 1 1 4 Engine 6 | 1 . 1 4 Core 1 | . 1 . . Reactor . | . . . . Propulsion 9 | 2 2 4 1 Treads . | . . . . Leg 8 | 2 1 4 1 Wheel 1 | . 1 . . Hover . | . . . . Flight . | . . . . Utility 5 | 2 . 2 1 Device 4 | 1 . 2 1 Storage 1 | 1 . . . Processor . | . . . . Hackware . | . . . . Protection . | . . . . Artifact . | . . . . Weapon 10 | 3 1 3 3 Energy Gun 2 | 1 . 1 . Energy Cannon . | . . . . Ballistic Gun 5 | 2 . 1 2 Ballistic Cannon . | . . . . Launcher 3 | . 1 1 1 Special Weapon . | . . . . Impact Weapon . | . . . . Slashing Weapon . | . . . . Piercing Weapon . | . . . . Special Melee Weapon . | . . . . Unidentified Prototypes 2 | . . . 2 Parts Lost 10 | . . 2 8 Power 2 | . . . 2 Propulsion 3 | . . 1 2 Utility 1 | . . . 1 Weapon 4 | . . 1 3 Highest Loss Streak 4 | . . 2 4 To Critical Strikes . | . . . . Average Slot Usage (%) 89 | . 100 88 88 Engine 7 | . 10 4 8 Core 2 | . 3 6 . Leg 29 | . 28 24 32 Device 19 | . 14 22 19 Storage 11 | . 14 11 11 Energy Gun 4 | . 14 8 . Ballistic Gun 4 | . 5 . 5 Launcher 10 | . 8 11 10 Naked Turns . | . . . . Heaviest Build 22 | 14 15 21 22 Greatest Support 51 | 20 20 51 51 Greatest Overweight (x) 3 | 3 . 1 . Average Overweight (x) . | . . . . Largest Inventory Capacity 8 | 8 8 8 8 Average Capacity 7 | 7 8 8 8 Most Carried 8 | 3 5 8 7 Average Carried 4 | 1 3 5 5 Final Capacity 8 | 8 8 8 8 Final Carried 7 | 2 4 7 7 Class Distribution -------------------- 87% | Mutant 12% | Commander-Mutant Dominant Class ---------------- Mutant | -10/Materials Mutant | -9/Materials Mutant | -9/Storage Resources | -11 -10 -9 -9 ----------- Run | Yrd Mat Mat Sto Matter Collected 1194 | 304 63 106 721 Remotely 631 | 78 63 81 409 Salvage Created 911 | 134 97 212 468 Parts 50 | 5 6 8 31 Haulers Intercepted 5 | . . 1 4 Recyclers Shooed 2 | . . 1 1 Parts Field Recycled . | . . . . Retrieved Matter . | . . . . Parts Self-Destructed . | . . . . Prevented . | . . . . Kills | -11 -10 -9 -9 ------- Run | Yrd Mat Mat Sto Combat Hostiles Destroyed 21 | . 2 4 15 Guns 4 | . . . 4 AOE 17 | . 2 4 11 Classes Destroyed 11 | 3 2 2 4 Worker 2 | 1 . . 1 Builder 1 | . 1 . . Tunneler 1 | 1 . . . Hauler 5 | . . 1 4 Recycler 4 | 1 . 1 2 Mechanic 1 | . . . 1 Watcher 1 | . . . 1 Swarmer 6 | . . . 6 Grunt 9 | . 2 1 6 Duelist 1 | . . . 1 Sentry 5 | . . 3 2 Best Kill Streak 8 | 1 3 2 8 Combat Bots Only 5 | . 2 2 5 Max Kills in Single Turn 4 | 1 2 1 4 Gunslinging . | . . . . Exploded 3 | . 1 1 3 Melee . | . . . . Uniques/NPCs Destroyed . | . . . . Combat | -11 -10 -9 -9 -------- Run | Yrd Mat Mat Sto Hostile Shots Fired 152 | . 4 42 106 Missed 53 | . 1 17 35 Damage Taken 1597 | . 81 385 1131 Core 447 | . 19 82 346 Absorbed by Shields . | . . . . Core Remaining (%) 96 | 100 92 . . Volleys Fired 79 | 8 6 19 46 Largest 2 | 2 2 2 2 Hottest 76 | 60 70 70 76 Shots Fired 118 | 16 11 30 61 Gun 69 | 16 7 14 32 Cannon . | . . . . Launcher 49 | . 4 16 29 Special . | . . . . Kinetic 31 | 8 1 . 22 Thermal 22 | 8 6 8 . Explosive 49 | . 4 16 29 Electromagnetic 16 | . . 6 10 Robot Hit Streak 7 | 7 . 2 6 Robot Miss Streak 3 | 1 2 2 3 Penetration Max . | . . . . Secondary Targets . | . . . . Shots Hit Robots 49 | 12 . 7 30 Core Hits 70 | 4 6 16 44 Critical Kills . | . . . . Critical Parts Destroyed 1 | . . . 1 Critical Strikes 1 | . . . 1 Destroy 1 | . . . 1 Melee Attacks . | . . . . Impact . | . . . . Slashing . | . . . . Piercing . | . . . . Sneak Attacks . | . . . . Combat Hostiles . | . . . . Follow-up Attacks . | . . . . Damage Inflicted 2919 | 146 134 456 2183 Guns 464 | 146 . 58 260 Cannons . | . . . . Explosions 2413 | . 129 384 1900 Melee . | . . . . Ramming 42 | . 5 14 23 Kinetic 310 | 103 . . 207 Thermal 65 | 43 . 22 . Explosive 2413 | . 129 384 1900 Electromagnetic 89 | . . 36 53 Impact . | . . . . Slashing . | . . . . Piercing . | . . . . Highest Corruption . | . . . . Average Corruption . | . . . . Corruption Purged . | . . . . Corruption Blocked . | . . . . Overload Shots . | . . . . Overflow Damage 27 | . . . 27 Projectiles . | . . . . Explosions 27 | . . . 27 Melee . | . . . . Knockbacks . | . . . . Impact . | . . . . Kinetic . | . . . . Secondary . | . . . . Self-Inflicted Damage 199 | . 40 22 137 Shots 8 | . 2 1 5 Rammed . | . . . . Targets Rammed 13 | . 2 2 9 Kicked 13 | . 2 2 9 Crushed . | . . . . Highest Temperature 329 | 20 34 63 329 Average Temperature 36 | 15 17 24 52 Received Heat Transfer 522 | . 24 117 381 Siege Activations . | . . . . Robots Corrupted . | . . . . Combat Hostiles . | . . . . Parts Fried . | . . . . Impact Corruptions . | . . . . Robots Melted . | . . . . Combat Hostiles . | . . . . Parts Melted . | . . . . Heat Transferred 150 | 100 . 50 . Parts Sabotaged . | . . . . Parts Stolen . | . . . . Parts Stripped . | . . . . Power Chain Reactions . | . . . . Alert | -11 -10 -9 -9 ------- Run | Yrd Mat Mat Sto Peak Influence 1142 | 15 127 197 1142 Initial 83 | . 9 53 83 Average 399 | 4 50 127 659 Maximum Alert Level 4 | . . . 4 Low Security (%) 47 | 100 100 100 5 Level 1 11 | . . . 20 Level 2 18 | . . . 34 Level 3 11 | . . . 21 Level 4 10 | . . . 18 Level 5 . | . . . . High Security . | . . . . Max Security . | . . . . Squads Dispatched 8 | . 1 1 6 Investigation 1 | . . 1 . Extermination . | . . . . Reinforcement 4 | . 1 . 3 Assault 3 | . . . 3 Garrison . | . . . . Intercept . | . . . . Searches Triggered . | . . . . Construction Impeded 2 | . . . 2 Haulers Reinforced . | . . . . Active Scanning Responses . | . . . . Cargo Convoy Interrupts . | . . . . Stealth | -11 -10 -9 -9 --------- Run | Yrd Mat Mat Sto Distress Signals 3 | . . 2 1 Communications Jammed . | . . . . Distress Signals . | . . . . Times Spotted 57 | . 4 8 45 Peak Tracking Total 8 | . 2 4 8 Tactical Retreats 1 | . . . 1 Traps | -11 -10 -9 -9 ------- Run | Yrd Mat Mat Sto Traps Triggered . | . . . . Indirectly . | . . . . Trap Hack Attempts . | . . . . Triggered . | . . . . Disarmed . | . . . . Reprogrammed . | . . . . Reused . | . . . . Traps Extracted . | . . . . Installed . | . . . . Triggered . | . . . . Machines | -11 -10 -9 -9 ---------- Run | Yrd Mat Mat Sto Machines Disabled 12 | . 1 . 11 Max in Single Turn 1 | . 1 . 1 Machines Repaired . | . . . . Machines Dismantled . | . . . . Machines Sabotaged . | . . . . Overloaded Fab Kills . | . . . . Hacking | -11 -10 -9 -9 --------- Run | Yrd Mat Mat Sto Machines Accessed 6 | . 2 1 3 Terminals 5 | . 1 1 3 Fabricators . | . . . . Repair Stations . | . . . . Recycling Units 1 | . 1 . . Scanalyzers . | . . . . Garrison Access . | . . . . Total Hacks 17 | . 7 5 5 Successful 8 | . 4 3 1 Failed 9 | . 3 2 4 Catastrophic 1 | . . . 1 Database Lockouts . | . . . . Manual . | . . . . Terminals 14 | . 4 5 5 Fabricators . | . . . . Repair Stations . | . . . . Recycling Units 3 | . 3 . . Scanalyzers . | . . . . Garrison Access . | . . . . Terminal Hacks 7 | . 3 3 1 Emergency Access Points 1 | . 1 . . Scanalyzer Index 1 | . 1 . . Alert Level 3 | . 1 2 . Unreport Threat 1 | . . 1 . Dispatch Records 1 | . . . 1 Fabricator Hacks . | . . . . Repair Station Hacks . | . . . . Recycling Unit Hacks 1 | . 1 . . Retrieve Matter 1 | . 1 . . Scanalyzer . | . . . . Garrison Access Hacks . | . . . . Unauthorized Hacks . | . . . . Terminals . | . . . . Fabricators . | . . . . Repair Stations . | . . . . Recycling Units . | . . . . Scanalyzers . | . . . . Garrison Access . | . . . . Data Cores Recovered 1 | . . . 1 Used 1 | . . . 1 Hacking Detections 6 | . 2 1 3 Full Trace Events 1 | . . 1 . Feedback Events . | . . . . Feedback Blocked . | . . . . Robot Schematics Acquired . | . . . . Robots Built . | . . . . Authchips . | . . . . Time . | . . . . Total Robot Build Rating . | . . . . Part Schematics Acquired . | . . . . Parts Built . | . . . . Authchips . | . . . . Time . | . . . . Total Part Build Rating . | . . . . Parts Repaired . | . . . . Time . | . . . . Parts Recycled . | . . . . Recycled Matter . | . . . . Retrieved Matter . | . . . . Retrieved Components . | . . . . Parts Scanalyzed . | . . . . Part Schematics Acquired . | . . . . Parts Damaged . | . . . . Bothacking | -11 -10 -9 -9 ------------ Run | Yrd Mat Mat Sto Used RIF Installer . | . . . . Robots Hacked . | . . . . Non-combat . | . . . . Combat . | . . . . Robot Hacks Applied . | . . . . Relay Couplers Released . | . . . . Fabnet Peak Effective % . | . . . . Robots Rewired . | . . . . Allies Hacked . | . . . . Hacks Repelled . | . . . . Allies | -11 -10 -9 -9 -------- Run | Yrd Mat Mat Sto Total Allies 12 | . . . 12 Largest Group 10 | . . . 10 Highest-Rated Group 126 | . . . 126 Highest-Rated Ally 31 | . . . 31 Total Orders . | . . . . Ally Attacks 163 | . . . 163 Total Damage 1740 | . . . 1740 Kills 22 | . . . 22 Allies Corrupted . | . . . . Allies Melted . | . . . . Intel | -11 -10 -9 -9 ------- Run | Yrd Mat Mat Sto Robot Analysis Total . | . . . . Derelict Logs Recovered . | . . . . Drone Launches . | . . . . Drone Recoveries . | . . . . Exploration | -11 -10 -9 -9 ------------- Run | Yrd Mat Mat Sto Turns Passed 1669 | 204 159 381 925 Spaces Moved 1149 | 143 109 243 654 Core 13 | 13 . . . Treads . | . . . . Legs 1136 | 130 109 243 654 Wheels . | . . . . Hover . | . . . . Flight . | . . . . Fastest Speed 50 | 50 120 120 120 Average Speed 120 | 115 120 125 120 Slowest Speed 200 | 200 120 190 120 Overloaded Moves . | . . . . Propulsion Burnouts . | . . . . Robots Hopped . | . . . . Cave-ins Triggered . | . . . . Exploration Rate (%) 25 | 5 22 17 57 Regions Visited 3 Branch Regions 1 Pre-discovered Areas . | . . . . Known Exits Taken . | . . . . Unknown Exits Taken 3 | 1 1 1 . Scrap Searched . | . . . . Spaces Dug . | . . . . Terrain Destroyed 355 | . 28 76 251 Melee . | . . . . Projectile . | . . . . AOE 355 | . 28 76 251 Terrain Rammed . | . . . . Walls Destroyed . | . . . . Machines Disabled . | . . . . Actions | -11 -10 -9 -9 --------- Run | Yrd Mat Mat Sto Total 1307 | 162 124 289 732 Wait 4 | . . . 4 Move 1146 | 142 108 242 654 Hop . | . . . . Pick Up 19 | 3 3 9 4 Fast Attach 14 | 7 . 2 5 Attach 7 | . . 3 4 Detach 1 | . . 1 . Swap 10 | 1 4 5 . Drop 12 | 1 1 6 4 Fire 79 | 8 6 19 46 Melee . | . . . . Ram . | . . . . Kick 13 | . 2 2 9 Crush . | . . . . Escape Stasis . | . . . . Rewire 2 | . . . 2 Trap . | . . . . Miscellaneous . | . . . . Route ------- -11/Scrapyard -10/Materials -9/Materials -9/Storage History --------- Turn | Location | Event 18 | -11/Scrapyard | Discovered new exit (range 15) 205 | -11/Scrapyard | Entered Materials 304 | -10/Materials | Build established: Mutant 330 | -10/Materials | Discovered new exit (range 5) 364 | -10/Materials | Entered another Materials area 364 | -9/Materials | Evolved 2 slots: Propulsion x1, Utility x1 557 | -9/Materials | Discovered new exit (range 6) 745 | -9/Materials | Entered Storage 896 | -9/Storage | Core integrity fell below 50% 1079 | -9/Storage | Assisted by bots powering up and referring to "LRC-V3" 1099 | -9/Storage | Core integrity fell below 20% 1127 | -9/Storage | Lost 4 parts (1n1u2w) 1138 | -9/Storage | Lost 3 allies 1144 | -9/Storage | Met a pair of Derelict thieves 1400 | -9/Storage | Lost 5 allies 1545 | -9/Storage | First assault squad dispatched 1670 | -9/Storage | Destroyed by L-31 Rogue with Katana Last Messages --------------- Manual option at the bottom, simply start typing and use autocomplete if desired (Up/Down/Tab/Enter). So-called indirect hacking has a lower chance of success, and is described in more detail in the manual. R-06 Scavenger inserts Prototype Flight Unit into recycling unit. R-06 Scavenger inserts Faulty Hvy. Ion Engine into recycling unit. Recycling unit begins recycling process. C-30 ARC bursts open, deploying its payload. G-34 Mercenary unfolds itself. EH-WAI(g) destroyed. Ion Engine destroyed. K-01 Serf cleans the Repair Station. K-01 Serf destroyed. G-34 Mercenary destroyed. Destroyed Sml. Laser. Critical hit (Burn: +37). Carbon-fiber Leg destroyed. Map ----- +----------------------------------------------------+ | ?????????######??# #?????????" # * | | ?????????????????# #????????? ### | | ?????????????????# #?????????# #### T??#### | | ?????????????????# ######???? ???? #?????? | | ?????????????????# ##T #???????"???? ?????? | | ?????????????????#[ + #???????????? ??????? | | ?????????????????#= #* #???????????????????? | | ?????????????????# # #???????????????????? | | ??????????????#### ## #???????????????????? | | ??????????????## # ######??????????????^????? | | ??????????????#### # ???????????????????????? | | ?????????????### # ###??????????????????????? | | ?????????????# # # #??????????????????????? | | ?????????????# ## ??????????????????????? | | ???????######### # % #??????????????????????? | | ???????# #??????????????????????? | | ?????????""" " # #??????????????????????? | | ?????????""" "" ! #??????????????????????? | | ?????????""" """ % #?????###??????????????? | | ?????????""" """ [ #?#####T####???????????? | | ???????# """ """ # **! #?# #???????????? | | ???????# # *### """ #???????????? | | ???????# = ### "R ! ###########?? | | ?????###+######## ## """ ##"T"# #?? | | ?????# ####### # "" + ##? | | ?????# % @l % # ^ T?? | | ?????# ## =% #^ """ ### | | ?????# # ! g # """ ""# | | ?????# ########/#### g # """ Y"# | | ?????## ##???# ## m#+#### ""# | | ??????# #????# % ### # #??# ### | | ??????# #????# """"" ## # # ##?# # # | | ??????# #????# "???"%###### #### ### | | ??????# #????# "??""[/ | | ??????# #????# ""??" !###### ! | | ??????# #????# "???" # # # ### | | ??????# #????# """"" # #[ #########+##### | | ??????# #????# + + # | | ??????# #????################## """"" """"" # | | ??????#####?????????????????????# """"" """"" # | | ????????????????????????????????# """"" """"" # | | ????????????????????????????????# # | | ??????????????????????????????????? = # | | ???????????????????????????????????###########? | | | | | | | | | | | | | +----------------------------------------------------+ Best States ------------- Heat Dissipation 28 Energy Generation 14 Energy Capacity 265 Matter Stores 300 Matter Capacity 300 Sight Range 16 Robot Scan Range 14 Terrain Scan Density 10 Additional Mass Support 6 Evasion (%) 55 Item Schematics ----------------- None Robot Schematics ------------------ None Fabricated ------------ Nothing Alien Tech Used ----------------- None Achievements -------------- Dynamic Key Significant Disruption Challenges ------------ None Game ------ Seed LinkedSapperShielding Manual? 0 Play Time 00:19:26 Cumulative 8.9 hours Start 2024.04.11 @ 09:47:40 End 2024.04.11 @ 10:08:05 Sessions 1 Manual Loads 0 Difficulty Rogue Special Mode None Game No. 35 Rogue 35 Adventurer 0 Explorer 0 Win Type - Total 0 Types 0/0/0/0/0/0/0/0/0 Lore% 11 Gallery% 13 Achievement% 13 Wizard Run 0 Options --------- Layout 1 ASCII 1 Keyboard 0 Movement Arrows Keybinds 0 Fullscreen 1 Font 18/SmallcapsGlow Map View 50x40 Zoom Use 0% Tactical HUD 0 Map Filters NONE Filters NONE Steam 1 RUN: d696cd2d-5454-4987-ab72-7561f341d9a2